fUSD/lending_fUSD_20250423
["ID","MTS","AMOUNT","RATE_DAILY","PERIOD"]
[358733219,1745406639318,-1000.0,0.00030462,2]
[358733221,1745406639329,-2059.0,0.00030694,2]
[358733223,1745406639340,-153.903,0.00030694,2]
[358733225,1745406639349,-917.0,0.00030694,2]
[358733227,1745406639359,-1334.0,0.00030694,2]
[358733229,1745406639369,-796.0,0.00030694,2]
[358733231,1745406639379,-547.0,0.00030694,2]
[358733233,1745406639388,-1285.0,0.00030694,2]
[358733236,1745406639398,-1444.0,0.00030694,2]
[358733238,1745406639413,-912.619,0.00030694,2]
[358733240,1745406639423,-4166.0,0.00030694,2]
[358733242,1745406639432,-578.0,0.00030694,2]
[358733244,1745406639442,-265.684,0.00030694,2]
[358733246,1745406639452,-254.601,0.00030694,2]
[358733248,1745406639461,-2145.0,0.00030694,2]
[358733250,1745406639471,-3984.0,0.00030694,2]
[358733252,1745406639481,-870.0,0.00030694,2]
[358733254,1745406639491,-876.0,0.00030694,2]
[358733256,1745406639500,-4844.49191971,0.00030762,9]
[358733258,1745406639510,-500.0,0.00031,2]
[358733260,1745406639519,-200.0,0.00031,2]
[358733263,1745406639530,-1940.79,0.00031507,2]
[358733265,1745406639540,-212.86,0.00031528,2]
[358733268,1745406639551,-4844.49191971,0.00031659,10]
[358733271,1745406639561,-1410.65,0.00031709,2]
[358733273,1745406639570,-4844.49191971,0.00032555,10]
[358733275,1745406639580,-212.86,0.0003274,2]
[358733277,1745406639590,-1940.79,0.00032877,2]
[358733279,1745406639600,-150.0,0.00032877,2]
[358733281,1745406639610,-150.0,0.00032877,5]
[358733283,1745406639621,-502.13170939,0.00032877,5]
[358733286,1745406639632,-550.0,0.00033,2]
[358733288,1745406639641,-200.0,0.00033151,2]
[358733290,1745406639652,-9618.09775269,0.00033243,2]
[358733292,1745406639662,-4844.49191971,0.00033452,11]
[358733294,1745406639671,-2059.0,0.00033694,2]
[358733296,1745406639681,-390.701,0.00033694,2]
[358733298,1745406639691,-1334.0,0.00033694,2]
[358733300,1745406639700,-796.0,0.00033694,2]
[358733302,1745406639709,-547.0,0.00033694,2]
[358733304,1745406639719,-1285.0,0.00033694,2]
[358733306,1745406639729,-1444.0,0.00033694,2]
[358733308,1745406639739,-910.0,0.00033694,2]
[358733310,1745406639749,-4166.0,0.00033694,2]
[358733312,1745406639758,-578.0,0.00033694,2]
[358733314,1745406639768,-152.0,0.00033694,2]
[358733317,1745406639778,-2145.0,0.00033694,2]
[358733319,1745406639787,-3984.0,0.00033694,2]
[358733321,1745406639797,-870.0,0.00033694,2]
[358733323,1745406639806,-876.0,0.00033694,2]
[358733325,1745406639816,-339.2399563,0.000337,2]
[358733327,1745406639825,-150.0,0.00033742,2]
[358733329,1745406639835,-1410.65,0.00033973,2]
[358733331,1745406639845,-1102.0,0.00034,2]
[358733333,1745406639854,-4844.49191971,0.00034348,11]
[358733335,1745406639863,-150.0,0.00034548,10]
[358733337,1745406639873,-150.0,0.00034607,2]
[358733339,1745406639882,-600.0,0.00035,2]
[358733341,1745406639892,-707.54,0.00035068,2]
[358733343,1745406639903,-373.0,0.000351,2]
[358733345,1745406639915,-2695.0,0.00035185,2]
[358733347,1745406639928,-4844.49191971,0.00035245,12]
[358733349,1745406639937,-513.09623006,0.00035471,5]
[358733351,1745406639947,-1030.15871669,0.00035471,5]
[358733354,1745406639956,-150.0,0.00035472,2]
[358733356,1745406639967,-181.22,0.00035616,2]
[358733358,1745406639976,-4369.60012,0.0003593,7]
[358733360,1745406639985,-4844.49191971,0.00036141,13]
[358733362,1745406639995,-1410.65,0.00036237,2]
[358733364,1745406640005,-150.0,0.00036337,2]
[358733366,1745406640017,-47984.93219494,0.00036693,2]
[358733368,1745406640030,-2059.0,0.00036694,2]
[358733370,1745406640040,-1334.0,0.00036694,2]
[358733372,1745406640050,-796.0,0.00036694,2]
[358733374,1745406640060,-547.0,0.00036694,2]
[358733376,1745406640069,-1285.0,0.00036694,2]
[358733378,1745406640080,-1444.0,0.00036694,2]
[358733380,1745406640089,-910.0,0.00036694,2]
[358733383,1745406640099,-4166.0,0.00036694,2]
[358733385,1745406640109,-574.0,0.00036694,2]
[358733387,1745406640119,-152.0,0.00036694,2]
[358733389,1745406640128,-2145.0,0.00036694,2]
[358733391,1745406640137,-3984.0,0.00036694,2]
[358733393,1745406640148,-870.0,0.00036694,2]
[358733395,1745406640161,-876.0,0.00036694,2]
[358733397,1745406640171,-650.0,0.00037,2]
[358733399,1745406640181,-4844.49191971,0.00037038,13]
[358733401,1745406640191,-843.49715552,0.00037071,5]
[358733403,1745406640202,-1500.0,0.00037071,5]
[358733405,1745406640212,-150.0,0.00037203,2]
[358733407,1745406640222,-544.0,0.00037713,5]
[358733409,1745406640232,-4844.49191971,0.00037934,14]
[358733411,1745406640243,-150.0,0.00038068,2]
[358733413,1745406640253,-150.05898027,0.00038356,5]
[358733417,1745406640263,-3697.58323869,0.000384,14]
[358733484,1745406640857,-446.09676131,0.000384,14]
[358733486,1745406640866,-2104.98099596,0.000385,2]
[358733489,1745406640882,-20539.68884494,0.000385,2]
[358733555,1745406641516,-606.69984754,0.000199,2]
[358733557,1745406641526,-20572.3301591,0.000385,2]
[358733559,1745406641535,-1410.65,0.00038501,2]
[358733561,1745406641545,-159.436332,0.000387,14]
[358733563,1745406641554,-151.911062,0.000387,14]
[358733565,1745406641567,-151.0,0.000387,14]
[358733567,1745406641577,-160.254056,0.000387,14]
[358733569,1745406641586,-160.254056,0.000387,14]
[358733572,1745406641596,-151.0,0.000387,14]
[358733574,1745406641605,-423.954629,0.000387,14]
[358733576,1745406641615,-423.954629,0.000387,14]
[358733578,1745406641624,-151.0,0.000387,14]
[358733580,1745406641634,-366.755139,0.000387,14]
[358733582,1745406641645,-366.755139,0.000387,14]
[358733584,1745406641655,-434.891262,0.000387,14]
[358733586,1745406641666,-434.891262,0.000387,14]
[358733588,1745406641676,-151.0,0.000387,14]
[358733590,1745406641686,-151.0,0.000387,14]
[358733591,1745406641695,-151.0,0.000387,14]
[358733592,1745406641704,-151.0,0.000387,14]
[358733593,1745406641713,-151.0,0.000387,14]
[358733594,1745406641723,-238.77858,0.000387,14]
[358733595,1745406641732,-502.096605,0.000387,14]
[358733596,1745406641742,-502.096605,0.000387,14]
[358733597,1745406641751,-1330.912874,0.000387,14]
[358733598,1745406641761,-1330.912874,0.000387,14]
[358733599,1745406641771,-1067.258309,0.000387,14]
[358733600,1745406641780,-1067.258309,0.000387,14]
[358733601,1745406641790,-991.327372,0.000387,14]
[358733602,1745406641799,-991.327372,0.000387,14]
[358733603,1745406641808,-734.670196,0.000387,14]
[358733604,1745406641817,-734.670196,0.000387,14]
[358733605,1745406641827,-151.0,0.000388,14]
[358733607,1745406641836,-151.0,0.000388,14]
[358733609,1745406641845,-151.0,0.000388,14]
[358733611,1745406641856,-151.0,0.000388,14]
[358733613,1745406641866,-4844.49191971,0.00038831,14]
[358733615,1745406641876,-151.0,0.000389,14]
[358733617,1745406641886,-151.0,0.000389,14]
[358733645,1745406641895,-151.0,0.000389,14]
[358733647,1745406642164,-210.004701,0.000389,14]
[358733649,1745406642174,-151.0,0.000389,14]
[358733651,1745406642183,-151.0,0.000389,14]
[358733653,1745406642193,-151.0,0.000389,14]
[358733655,1745406642203,-1306.445492,0.000389,14]
[358733657,1745406642212,-1306.445492,0.000389,14]
[358733660,1745406642222,-257.821998,0.000389,14]
[358733662,1745406642232,-257.821998,0.000389,14]
[358733663,1745406642243,-240.960835,0.000389,14]
[358733665,1745406642253,-240.960835,0.000389,14]
[358733668,1745406642263,-2436.382727,0.000389,14]
[358733670,1745406642272,-151.0,0.000389,14]
[358733672,1745406642283,-2436.382727,0.000389,14]
[358733674,1745406642293,-151.0,0.000389,14]
[358733676,1745406642304,-151.0,0.000389,14]
[358733679,1745406642313,-151.0,0.000389,14]
[358733682,1745406642323,-151.071067,0.000389,14]
[358733685,1745406642333,-151.071067,0.000389,14]
[358733688,1745406642343,-150.92,0.000389,2]
[358733691,1745406642353,-150.92,0.000389,2]
[358733694,1745406642362,-150.92,0.000389,2]
[358733697,1745406642372,-150.92,0.000389,2]
[358733700,1745406642381,-150.92,0.000389,2]
[358733703,1745406642391,-150.92,0.000389,2]
[358733706,1745406642400,-150.92,0.000389,2]
[358733709,1745406642410,-150.92,0.000389,2]
[358733711,1745406642419,-150.92,0.000389,2]
[358733713,1745406642429,-150.92,0.000389,2]
[358733716,1745406642439,-150.92,0.000389,2]
[358733719,1745406642449,-150.92,0.000389,2]
[358733723,1745406642458,-150.92,0.000389,2]
[358733727,1745406642468,-150.92,0.000389,2]
[358733731,1745406642477,-150.92,0.000389,2]
[358733735,1745406642487,-150.92,0.000389,2]
[358733739,1745406642496,-150.92,0.000389,2]
[358733742,1745406642506,-150.92,0.000389,2]
[358733745,1745406642516,-150.92,0.000389,2]
[358733748,1745406642526,-150.92,0.000389,2]
[358733751,1745406642535,-150.92,0.000389,2]
[358733754,1745406642545,-150.92,0.000389,2]
[358733757,1745406642555,-150.92,0.000389,2]
[358733760,1745406642565,-150.92,0.000389,2]
[358733763,1745406642574,-150.92,0.000389,2]
[358733766,1745406642583,-150.92,0.000389,2]
[358733769,1745406642593,-150.92,0.000389,2]
[358733772,1745406642602,-150.92,0.000389,2]
[358733775,1745406642611,-150.92,0.000389,2]
[358733778,1745406642621,-150.92,0.000389,2]
[358733781,1745406642630,-150.92,0.000389,2]
[358733784,1745406642639,-150.92,0.000389,2]
[358733787,1745406642648,-150.92,0.000389,2]
[358733790,1745406642658,-150.92,0.000389,2]
[358733793,1745406642667,-150.92,0.000389,2]
[358733796,1745406642677,-150.92,0.000389,2]
[358733799,1745406642686,-150.92,0.000389,2]
[358733802,1745406642695,-150.92,0.000389,2]
[358733805,1745406642705,-150.92,0.000389,2]
[358733808,1745406642715,-150.92,0.000389,2]
[358733811,1745406642724,-150.92,0.000389,2]
[358733814,1745406642733,-150.92,0.000389,2]
[358733817,1745406642743,-150.92,0.000389,2]
[358733821,1745406642753,-150.92,0.000389,2]
[358733824,1745406642763,-150.92,0.000389,2]
[358733826,1745406642772,-150.92,0.000389,2]
[358733831,1745406642781,-150.92,0.000389,2]
[358733834,1745406642791,-150.92,0.000389,2]
[358733837,1745406642803,-150.92,0.000389,2]
[358733840,1745406642815,-150.92,0.000389,2]
[358733843,1745406642827,-150.92,0.000389,2]
[358733846,1745406642836,-150.92,0.000389,2]
[358733849,1745406642847,-150.92,0.000389,2]
[358733852,1745406642857,-150.92,0.000389,2]
[358733855,1745406642867,-150.92,0.000389,2]
[358733858,1745406642876,-150.92,0.000389,2]
[358733861,1745406642886,-150.92,0.000389,2]
[358733864,1745406642895,-150.92,0.000389,2]
[358733867,1745406642905,-150.92,0.000389,2]
[358733870,1745406642914,-150.92,0.000389,2]
[358733873,1745406642924,-150.92,0.000389,2]
[358733876,1745406642933,-150.92,0.000389,2]
[358733879,1745406642943,-150.92,0.000389,2]
[358733882,1745406642951,-150.92,0.000389,2]
[358733884,1745406642960,-150.92,0.000389,2]
[358733886,1745406642970,-150.92,0.000389,2]
[358733888,1745406642979,-150.92,0.000389,2]
[358733890,1745406642988,-150.92,0.000389,2]
[358733893,1745406642998,-150.92,0.000389,2]
[358733895,1745406643008,-150.92,0.000389,2]
[358733898,1745406643017,-150.92,0.000389,2]
[358733901,1745406643026,-150.92,0.000389,2]
[358733904,1745406643035,-150.92,0.000389,2]
[358733908,1745406643045,-150.92,0.000389,2]
[358733911,1745406643056,-150.92,0.000389,2]
[358733914,1745406643066,-150.92,0.000389,2]
[358733917,1745406643075,-150.92,0.000389,2]
[358733920,1745406643085,-150.92,0.000389,2]
[358733923,1745406643094,-150.92,0.000389,2]
[358733926,1745406643103,-150.92,0.000389,2]
[358733929,1745406643113,-150.92,0.000389,2]
[358733932,1745406643122,-150.92,0.000389,2]
[358733935,1745406643131,-150.92,0.000389,2]
[358733939,1745406643141,-150.92,0.000389,2]
[358733941,1745406643150,-150.92,0.000389,2]
[358733945,1745406643166,-150.92,0.000389,2]
[358733948,1745406643177,-150.92,0.000389,2]
[358733951,1745406643186,-150.92,0.000389,2]
[358733954,1745406643197,-150.92,0.000389,2]
[358733957,1745406643207,-150.92,0.000389,2]
[358733960,1745406643217,-150.92,0.000389,2]
[358733963,1745406643226,-150.92,0.000389,2]
[358733966,1745406643237,-150.92,0.000389,2]
[358733969,1745406643247,-150.92,0.000389,2]
[358733972,1745406643256,-150.92,0.000389,2]
[358733975,1745406643266,-150.92,0.000389,2]
[358733978,1745406643277,-150.0,0.00038933,2]
[358733981,1745406643287,-700.0,0.00039,2]
[358733983,1745406643296,-150.0,0.00039211,5]
[358733984,1745406643307,-5565.0,0.000393,3]
[358733986,1745406643316,-1102.78563424,0.000395,2]
[358733988,1745406643326,-180.0,0.00039584,22]
[358733990,1745406643336,-710.762,0.00039694,2]
[358733992,1745406643346,-1334.0,0.00039694,2]
[358733994,1745406643356,-796.0,0.00039694,2]
[358733996,1745406643365,-499.527,0.00039694,2]
[358733998,1745406643374,-1277.869,0.00039694,2]
[358734000,1745406643384,-1438.078,0.00039694,2]
[358734002,1745406643393,-4166.0,0.00039694,2]
[358734004,1745406643403,-152.0,0.00039694,2]
[358734006,1745406643413,-2145.0,0.00039694,2]
[358734008,1745406643423,-3984.0,0.00039694,2]
[358734011,1745406643432,-876.0,0.00039694,2]
[358734013,1745406643442,-360.55680949,0.00039726,15]
[358734014,1745406643450,-4844.49191971,0.00039728,15]
[358734017,1745406643460,-150.0,0.00039798,2]
[358734019,1745406643471,-12000.59537016,0.0003988,2]
[358734021,1745406643480,-932.30454894,0.0004,5]
[358734023,1745406643489,-213.0,0.0004007,2]
[358734025,1745406643498,-5565.0,0.000402,5]
[358734027,1745406643507,-332.245943,0.00040271,14]
[358734029,1745406643517,-332.245943,0.00040271,14]
[358734031,1745406643526,-4143.68,0.000403,14]
[358734033,1745406643536,-373.91186648,0.000405,2]
[358734035,1745406643547,-151.0,0.00040562,14]
[358734037,1745406643557,-151.0,0.00040562,14]
[358734039,1745406643567,-151.0,0.00040562,14]
[358734041,1745406643576,-151.0,0.00040562,14]
[358734043,1745406643585,-151.0,0.00040562,14]
[358734045,1745406643595,-280.006792,0.00040562,14]
[358734047,1745406643604,-4844.49191971,0.00040624,16]
[358734049,1745406643614,-151.0,0.00040663,14]
[358734051,1745406643623,-150.0,0.00040663,2]
[358734053,1745406643632,-1410.65,0.00040765,2]
[358734055,1745406643641,-158.1307,0.00040888,7]
[358734057,1745406643651,-750.0,0.00041,2]
[358734059,1745406643662,-187.0,0.00041,14]
[358734061,1745406643671,-160.0,0.00041,14]
[358734063,1745406643680,-151.0,0.00041,14]
[358734065,1745406643689,-151.0,0.00041,14]
[358734067,1745406643699,-151.0,0.00041,14]
[358734069,1745406643708,-151.0,0.00041,14]
[358734071,1745406643717,-151.0,0.00041,14]
[358734073,1745406643727,-151.0,0.00041,14]
[358734075,1745406643736,-151.0,0.00041,14]
[358734077,1745406643745,-213.0,0.0004106,2]
[358734079,1745406643754,-2000.0,0.00041095,2]
[358734081,1745406643763,-2000.0,0.00041095,2]
[358734083,1745406643773,-2000.0,0.00041095,2]
[358734085,1745406643782,-2000.0,0.00041095,2]
[358734087,1745406643793,-2000.0,0.00041095,2]
[358734089,1745406643804,-2000.0,0.00041095,2]
[358734091,1745406643813,-2000.0,0.00041095,2]
[358734093,1745406643822,-2000.0,0.00041095,2]
[358734095,1745406643831,-2000.0,0.00041095,2]
[358734097,1745406643841,-2000.0,0.00041095,2]
[358734099,1745406643850,-2000.0,0.00041095,2]
[358734101,1745406643860,-2000.0,0.00041095,2]
[358734103,1745406643869,-2000.0,0.00041095,2]
[358734105,1745406643878,-2000.0,0.00041095,2]
[358734107,1745406643887,-2000.0,0.00041095,2]
[358734109,1745406643896,-2000.0,0.00041095,2]
[358734111,1745406643906,-640.69932948,0.00041095,2]
[358734113,1745406643916,-500.0,0.00041096,10]
[358734115,1745406643926,-4844.49191971,0.00041521,16]
[358734117,1745406643935,-150.0,0.00041528,2]
[358734119,1745406643944,-166.66,0.00041574,2]
[358734121,1745406643954,-1000.0,0.00041644,10]
[358734123,1745406643963,-160.0,0.0004195,10]
[358734125,1745406643972,-560.0,0.00042,2]
[358734128,1745406643983,-1000.0,0.00042,9]
[358734130,1745406643992,-1000.0,0.00042,8]
[358734132,1745406644002,-814.0,0.00042,7]
[358734134,1745406644011,-1000.0,0.00042,2]
[358734136,1745406644022,-1000.0,0.00042,3]
[358734138,1745406644032,-1000.0,0.00042,3]
[358734140,1745406644041,-152.0,0.00042033,3]
[358734142,1745406644050,-213.0,0.0004206,2]
[358734144,1745406644060,-201.05902538,0.00042074,14]
[358734146,1745406644070,-311.97860147,0.00042192,10]
[358734148,1745406644079,-150.0,0.00042394,2]
[358734150,1745406644089,-4844.49191971,0.00042417,17]
[358734152,1745406644099,-4143.68,0.000425,14]
[358734154,1745406644108,-151.0,0.000425,14]
[358734156,1745406644118,-225.746988,0.000425,14]
[358734158,1745406644128,-150.0,0.00042535,2]
[358734160,1745406644138,-150.0,0.00042594,2]
[358734162,1745406644148,-150.0,0.00042622,2]
[358734164,1745406644163,-150.0,0.00042638,2]
[358734165,1745406644175,-1334.0,0.00042694,2]
[358734166,1745406644185,-796.0,0.00042694,2]
[358734167,1745406644194,-246.413,0.00042694,2]
[358734168,1745406644205,-2145.0,0.00042694,2]
[358734169,1745406644214,-2349.095,0.00042694,2]
[358734170,1745406644224,-150.0,0.00042703,2]
[358734171,1745406644234,-150.0,0.00042707,2]
[358734172,1745406644244,-150.0,0.00042719,2]
[358734173,1745406644254,-150.0,0.00042753,2]
[358734174,1745406644264,-150.0,0.00042762,2]
[358734175,1745406644274,-150.0,0.00042802,2]
[358734176,1745406644284,-150.0,0.00042822,2]
[358734177,1745406644294,-150.0,0.00042907,2]
[358734178,1745406644304,-150.0,0.00042915,2]
[358734180,1745406644313,-150.0,0.00042939,2]
[358734182,1745406644323,-166.66,0.00042946,2]
[358734184,1745406644333,-150.0,0.00042974,2]
[358734186,1745406644344,-150.0,0.00042979,2]
[358734188,1745406644355,-150.0,0.00042993,2]
[358734190,1745406644366,-800.0,0.00043,2]
[358734192,1745406644377,-150.0,0.00043001,2]
[358734194,1745406644389,-150.0,0.0004301,2]
[358734196,1745406644399,-150.0,0.0004301,2]
[358734198,1745406644410,-150.0,0.0004302,2]
[358734200,1745406644420,-150.0,0.00043025,2]
[358734202,1745406644431,-1410.65,0.00043029,2]
[358734204,1745406644442,-150.0,0.00043031,2]
[358734206,1745406644453,-150.0,0.00043048,2]
[358734208,1745406644463,-150.0,0.00043049,2]
[358734210,1745406644473,-213.0,0.0004306,2]
[358734212,1745406644484,-150.0,0.00043067,2]
[358734214,1745406644495,-150.0,0.00043071,2]
[358734216,1745406644505,-150.0,0.00043104,2]
[358734218,1745406644516,-150.0,0.00043113,2]
[358734221,1745406644526,-150.0,0.00043114,2]
[358734223,1745406644536,-150.0,0.00043167,2]
[358734225,1745406644547,-150.0,0.00043183,2]
[358734227,1745406644558,-150.0,0.00043192,2]
[358734229,1745406644567,-150.0,0.00043194,2]
[358734231,1745406644578,-150.0,0.00043205,2]
[358734233,1745406644588,-150.0,0.00043208,2]
[358734235,1745406644598,-150.0,0.00043224,2]
[358734237,1745406644607,-150.0,0.00043241,2]
[358734239,1745406644617,-150.0,0.0004325,2]
[358734241,1745406644627,-150.0,0.0004325,2]
[358734243,1745406644636,-150.0,0.00043259,2]
[358734245,1745406644646,-4844.49191971,0.00043314,17]
[358734247,1745406644656,-150.0,0.00043332,2]
[358734249,1745406644666,-150.0,0.00043338,2]
[358734251,1745406644675,-150.0,0.00043361,2]
[358734253,1745406644685,-150.0,0.0004337,2]
[358734255,1745406644695,-248.34498724,0.00043376,2]
[358734257,1745406644704,-150.0,0.00043388,2]
[358734259,1745406644713,-150.0,0.00043392,2]
[358734261,1745406644723,-150.0,0.00043405,2]
[358734263,1745406644733,-150.0,0.00043407,2]
[358734266,1745406644742,-150.0,0.00043424,2]
[358734268,1745406644752,-150.0,0.00043431,2]
[358734270,1745406644761,-150.0,0.00043452,2]
[358734272,1745406644771,-150.0,0.0004346,2]
[358734273,1745406644779,-150.0,0.00043466,2]
[358734275,1745406644789,-150.0,0.0004349,2]
[358734277,1745406644800,-150.0,0.00043495,2]
[358734279,1745406644810,-150.0,0.00043509,2]
[358734282,1745406644820,-150.0,0.00043512,2]
[358734284,1745406644830,-150.0,0.00043531,2]
[358734286,1745406644840,-150.0,0.00043576,2]
[358734288,1745406644850,-150.0,0.0004358,2]
[358734290,1745406644860,-150.0,0.00043589,2]
[358734292,1745406644870,-150.0,0.000436,2]
[358734294,1745406644882,-150.0,0.00043642,2]
[358734296,1745406644897,-150.0,0.00043648,2]
[358734298,1745406644907,-150.0,0.00043663,2]
[358734301,1745406644916,-150.0,0.00043686,2]
[358734303,1745406644926,-150.0,0.00043687,2]
[358734305,1745406644936,-150.0,0.00043692,2]
[358734307,1745406644946,-150.0,0.00043694,2]
[358734309,1745406644956,-150.0,0.00043701,2]
[358734311,1745406644965,-150.0,0.00043704,2]
[358734313,1745406644975,-150.0,0.00043716,2]
[358734315,1745406644985,-150.0,0.00043721,2]
[358734317,1745406644995,-150.0,0.00043729,2]
[358734319,1745406645004,-162.96210182,0.00043731,2]
[358734321,1745406645014,-150.0,0.00043822,2]
[358734323,1745406645024,-150.0,0.00043825,2]
[358734325,1745406645034,-500.0,0.00043835,2]
[358734327,1745406645044,-500.0,0.00043835,2]
[358734329,1745406645055,-500.0,0.00043835,2]
[358734331,1745406645064,-500.0,0.00043835,2]
[358734333,1745406645074,-500.0,0.00043835,2]
[358734335,1745406645084,-500.0,0.00043835,2]
[358734337,1745406645094,-444.86514967,0.00043835,2]
[358734339,1745406645104,-500.0,0.00043835,2]
[358734341,1745406645114,-500.0,0.00043835,2]
[358734343,1745406645124,-500.0,0.00043835,2]
[358734345,1745406645133,-500.0,0.00043835,2]
[358734347,1745406645143,-500.0,0.00043835,2]
[358734349,1745406645156,-500.0,0.00043835,2]
[358734351,1745406645167,-604.64465951,0.00043835,2]
[358734353,1745406645177,-500.0,0.00043835,2]
[358734356,1745406645186,-500.0,0.00043835,2]
[358734359,1745406645196,-500.0,0.00043835,2]
[358734362,1745406645206,-500.0,0.00043835,2]
[358734365,1745406645215,-500.0,0.00043835,2]
[358734367,1745406645225,-500.0,0.00043835,2]
[358734369,1745406645235,-500.0,0.00043835,2]
[358734371,1745406645245,-500.0,0.00043835,2]
[358734373,1745406645255,-500.0,0.00043835,2]
[358734375,1745406645266,-500.0,0.00043835,2]
[358734377,1745406645277,-500.0,0.00043835,2]
[358734379,1745406645288,-500.0,0.00043835,2]
[358734385,1745406645300,-500.0,0.00043835,2]
[358734388,1745406645313,-151.0,0.00043835,7]
[358734391,1745406645323,-500.0,0.00043835,2]
[358734394,1745406645334,-500.0,0.00043835,2]
[358734397,1745406645343,-500.0,0.00043835,2]
[358734400,1745406645354,-500.0,0.00043835,2]
[358734403,1745406645364,-500.0,0.00043835,2]
[358734405,1745406645374,-500.0,0.00043835,2]
[358734407,1745406645384,-500.0,0.00043835,2]
[358734409,1745406645394,-500.0,0.00043835,2]
[358734411,1745406645404,-500.0,0.00043835,2]
[358734413,1745406645414,-500.0,0.00043835,2]
[358734414,1745406645423,-500.0,0.00043835,2]
[358734416,1745406645433,-3500.0,0.00043835,10]
[358734418,1745406645442,-3500.0,0.00043835,10]
[358734419,1745406645452,-3500.0,0.00043835,10]
[358734421,1745406645462,-3500.0,0.00043835,10]
[358734423,1745406645472,-3500.0,0.00043835,10]
[358734424,1745406645482,-3500.0,0.00043835,10]
[358734426,1745406645492,-3500.0,0.00043835,10]
[358734428,1745406645501,-2963.17525658,0.00043835,10]
[358734429,1745406645511,-500.0,0.00043835,2]
[358734431,1745406645520,-519.577272,0.00043836,14]
[358734433,1745406645530,-519.577272,0.00043836,14]
[358734434,1745406645540,-519.577272,0.00043836,14]
[358734436,1745406645551,-519.577272,0.00043836,14]
[358734438,1745406645560,-214.73858543,0.00043836,2]
[358734439,1745406645570,-2011.722,0.00043836,10]
[358734441,1745406645580,-275.0,0.00043836,5]
[358734443,1745406645590,-10000.0,0.00043836,30]
[358734444,1745406645600,-5710.0,0.00043836,14]
[358734446,1745406645610,-151.0,0.00043836,14]
[358734448,1745406645620,-151.0,0.00043836,14]
[358734450,1745406645629,-151.0,0.00043836,14]
[358734470,1745406645879,-151.0,0.00043836,14]
[358734472,1745406645890,-151.0,0.00043836,14]
[358734474,1745406645899,-151.0,0.00043836,14]
[358734475,1745406645909,-1306.445492,0.00043836,14]
[358734477,1745406645918,-1306.445492,0.00043836,14]
[358734479,1745406645927,-257.821998,0.00043836,14]
[358734480,1745406645938,-257.821998,0.00043836,14]
[358734482,1745406645947,-240.960835,0.00043836,14]
[358734484,1745406645957,-240.960835,0.00043836,14]
[358734486,1745406645966,-151.0,0.00043836,14]